bitfinex/quotes_SOLUSD_20250619
["timestamp","ask_amount","ask_price","bid_price","bid_amount"]
[1750307706182,4.78092358,145.92,145.89,23.9906779]
[1750307706500,26.0,145.94,145.89,23.9906779]
[1750307706678,9.88031769,145.93,145.89,23.9906779]
[1750307706878,4.77991,145.92,145.89,23.9906779]
[1750307707079,5.10040769,145.93,145.89,23.9906779]
[1750307707291,4.77988355,145.92,145.89,23.9906779]
[1750307707495,5.10040769,145.93,145.89,23.9906779]
[1750307707808,4.78060165,145.92,145.89,23.9906779]
[1750307708128,5.10040769,145.93,145.89,23.9906779]
[1750307708291,4.7805815,145.92,145.89,23.9906779]
[1750307708476,5.10040769,145.93,145.89,23.9906779]
[1750307708676,4.77853684,145.92,145.89,23.9906779]
[1750307708881,5.10040769,145.93,145.89,23.9906779]
[1750307709111,4.77842198,145.92,145.89,23.9906779]
[1750307709402,5.10040769,145.93,145.89,23.9906779]
[1750307709606,4.77721926,145.92,145.89,23.9906779]
[1750307709808,10.31174862,145.93,145.89,23.9906779]
[1750307709985,4.77722743,145.92,145.89,23.9906779]
[1750307710183,5.21134093,145.93,145.89,23.9906779]
[1750307710383,9.98749872,145.92,145.89,23.9906779]
[1750307710607,5.21134093,145.92,145.89,23.9906779]
[1750307715194,5.21134093,145.93,145.89,23.9906779]
[1750307715404,4.77451272,145.92,145.89,23.9906779]
[1750307715639,5.21134093,145.93,145.89,23.9906779]
[1750307715807,4.77451179,145.92,145.89,23.9906779]
[1750307715985,5.21134093,145.93,145.89,23.9906779]
[1750307717283,4.77320872,145.92,145.89,23.9906779]
[1750307717483,5.21134093,145.93,145.89,29.20201883]
[1750307717680,4.7729487,145.92,145.89,29.20201883]
[1750307717883,5.09454936,145.96,145.89,29.20201883]
[1750307718221,5.21134093,145.93,145.89,29.20201883]
[1750307719081,5.21134093,145.93,145.89,23.9906779]
[1750307719287,5.09454936,145.94,145.89,23.9906779]
[1750307719499,9.98418999,145.93,145.89,23.9906779]
[1750307719818,5.21134093,145.93,145.89,23.9906779]
[1750307722892,5.21134093,145.93,145.89,29.20201883]
[1750307723096,5.21134093,145.94,145.9,18.64964886]
[1750307723407,5.21134093,145.95,145.9,23.86098979]
[1750307724192,5.21134093,145.95,145.9,112.06098979]
[1750307724704,5.21134093,145.95,145.91,23.98738948]
[1750307724912,5.09454936,145.97,145.92,23.86098979]
[1750307725122,9.86939297,145.99,145.94,23.86098979]
[1750307725294,5.09454936,146.0,145.95,5.21134093]
[1750307725490,5.09454936,146.0,145.94,46.34964886]
[1750307725491,4.77070204,145.99,145.96,23.86098979]
[1750307725713,4.7667965,145.99,145.96,23.86098979]
[1750307725901,4.7667965,146.0,145.96,23.86098979]
[1750307726093,31.21134093,146.01,145.97,5.21134093]
[1750307726287,5.09454936,146.04,145.98,18.64964886]
[1750307726523,5.21134093,146.02,145.98,23.86098979]
[1750307726721,5.09454936,146.04,145.99,23.9742448]
[1750307726921,8.13208808,146.02,145.99,23.9742448]
[1750307727303,34.13208808,146.02,145.99,23.9742448]
[1750307727504,26.0,146.02,145.99,32.10633288]
[1750307727715,8.13208808,146.04,146.0,18.64964886]
[1750307727899,8.13208808,146.01,145.99,6.84978423]
[1750307728309,8.13208808,146.0,145.99,6.84978423]
[1750307728523,8.13208808,146.01,145.99,6.84978423]
[1750307728736,8.13208808,146.01,145.98,23.97580844]
[1750307729802,8.13208808,146.0,145.98,6.85025345]
[1750307731322,8.13208808,146.01,145.98,6.85025345]
[1750307731522,8.13208808,146.0,145.98,6.85025345]
[1750307732514,8.13208808,146.01,145.98,6.85025345]
[1750307733423,8.13208808,146.01,145.98,23.97588709]
[1750307733812,26.0,146.04,145.98,23.97588709]
[1750307734006,8.13208808,146.01,145.98,23.97588709]
[1750307735726,26.0,146.04,145.98,23.97588709]
[1750307736026,8.13208808,146.01,145.98,23.97588709]
[1750307740333,8.13208808,146.0,145.98,23.97588709]
[1750307740708,8.13208808,145.99,145.98,6.85025345]
[1750307740924,8.13208808,145.99,145.93,22.95059137]
[1750307741233,26.0,145.99,145.94,6.85213101]
[1750307742324,8.13208808,145.95,145.94,6.85213101]
[1750307747121,8.13208808,145.95,145.93,6.85260056]
[1750307747325,8.13208808,145.94,145.93,6.85260056]
[1750307753441,4.76931965,145.98,145.93,6.85260056]
[1750307753650,8.13208808,145.94,145.93,6.85260056]
[1750307754942,8.13208808,145.94,145.91,6.85353985]
[1750307755144,8.13208808,145.95,145.91,6.85353985]
[1750307755325,8.13208808,145.95,145.9,6.85400959]
[1750307755326,8.13208808,145.92,145.9,6.85400959]
[1750307755527,8.13208808,145.91,145.9,6.85400959]
[1750307763742,8.13208808,145.91,145.89,12.67436907]
[1750307763935,8.13208808,145.9,145.89,6.85436907]
[1750307765360,8.13208808,145.9,145.87,6.8554192]
[1750307765660,8.13208808,145.89,145.87,6.8554192]
[1750307767955,26.0,145.91,145.88,18.64964886]
[1750307768259,8.13208808,145.93,145.88,142.66173694]
[1750307768659,34.13208808,145.93,145.88,142.66173694]
[1750307769237,34.13208808,145.93,145.89,23.9906779]
[1750307770163,8.13208808,145.92,145.89,23.9906779]
[1750307772364,8.13208808,145.91,145.89,23.9906779]
[1750307773558,7.6766,146.01,145.9,32.62173694]
[1750307773778,8.13208808,145.97,145.93,8.13208808]
[1750307774267,8.13208808,145.97,145.92,26.78173694]
[1750307775264,8.13208808,145.97,145.93,8.13208808]
[1750307775649,8.13208808,145.97,145.94,6.85213101]
[1750307776066,8.13208808,145.97,145.94,23.98245854]
[1750307777555,8.13208808,145.97,145.94,17.13032753]
[1750307777748,26.0,145.98,145.94,17.13032753]
[1750307777948,8.13208808,145.97,145.94,17.13032753]
[1750307779047,8.13208808,145.96,145.93,6.85260056]
[1750307779248,8.13208808,145.94,145.93,6.85260056]
[1750307779460,8.13208808,145.94,145.91,44.83321414]
[1750307779461,8.13208808,145.94,145.92,6.85307017]
[1750307779655,8.13208808,145.95,145.92,6.85307017]
[1750307779862,26.0,145.97,145.92,6.85307017]
[1750307780070,8.13208808,145.95,145.92,6.85307017]
[1750307783351,8.13208808,145.94,145.92,6.85307017]
[1750307784655,8.13208808,145.94,145.91,23.98675399]
[1750307786276,38.90085716,145.95,145.91,32.11884207]
[1750307786478,8.13208808,145.94,145.91,23.98675399]
[1750307787581,8.13208808,145.93,145.91,6.85353985]
[1750307789880,8.13208808,145.93,145.9,6.85400959]
[1750307790378,12.90116998,145.93,145.9,6.85400959]
[1750307790576,8.13208808,145.93,145.9,6.85400959]
[1750307790780,8.13208808,145.92,145.89,23.99066569]
[1750307790981,8.13208808,145.9,145.89,6.8544794]
[1750307791973,26.0,145.9,145.89,6.8544794]
[1750307792159,8.13208808,145.9,145.89,6.8544794]
[1750307792788,8.13208808,145.9,145.88,6.85494927]
[1750307793491,4.75994301,145.91,145.88,6.85494927]
[1750307793492,8.13208808,145.91,145.88,6.85494927]
[1750307794495,8.13208808,145.91,145.88,23.99232245]
[1750307796570,8.13208808,145.9,145.88,6.85494927]
[1750307797188,8.13208808,145.89,145.88,6.85494927]
[1750307798075,8.13208808,145.89,145.87,12.69527337]
[1750307798276,8.13208808,145.88,145.87,6.85527337]
[1750307799402,8.13208808,145.88,145.85,6.85635927]
[1750307799896,8.13208808,145.87,145.85,6.85635927]
[1750307800982,8.13208808,145.87,145.84,6.8568294]
[1750307801788,8.13208808,145.88,145.84,32.13099098]
[1750307802184,34.13208808,145.88,145.84,32.13099098]
[1750307802984,34.13208808,145.88,145.85,18.64964886]
[1750307802985,26.0,145.88,145.85,18.64964886]
[1750307803780,34.13208808,145.88,145.85,18.64964886]
[1750307805093,34.13208808,145.88,145.86,6.8558892]
[1750307806298,26.0,145.88,145.86,6.8558892]
[1750307806467,34.13208808,145.88,145.86,6.8558892]
[1750307808304,26.0,145.88,145.86,6.8558892]
[1750307819210,34.13208808,145.88,145.86,6.8558892]
[1750307819901,8.13208808,145.87,145.86,6.8558892]
[1750307821311,8.13208808,145.87,145.85,6.85635927]
[1750307821727,34.13208808,145.88,145.85,6.85635927]
[1750307823008,34.13208808,145.91,145.87,8.13208808]
[1750307823315,34.13208808,145.91,145.88,6.85494927]
[1750307823826,34.13208808,145.91,145.88,23.99232245]
[1750307829229,8.13208808,145.9,145.88,23.99232245]
[1750307830011,8.13208808,145.89,145.87,6.8554192]
[1750307830298,8.13208808,145.88,145.87,6.8554192]
[1750307830819,38.88301876,145.88,145.85,6.85635927]
[1750307831121,8.13208808,145.86,145.85,6.85635927]
[1750307832023,8.13208808,145.86,145.84,6.8568294]
[1750307834020,26.0,145.88,145.84,6.8568294]
[1750307834221,8.13208808,145.86,145.84,6.8568294]
[1750307843216,26.0,145.87,145.84,6.8568294]
[1750307843416,26.0,145.86,145.84,23.9989029]
[1750307845917,13.2263821,145.89,145.85,26.78173694]
[1750307846116,4.75762649,145.88,145.86,8.13208808]
[1750307846315,5.09429402,145.9,145.86,8.13208808]
[1750307846515,4.7581807,145.89,145.86,8.13208808]
[1750307846715,5.09429402,145.9,145.86,8.13208808]
[1750307847037,4.75842088,145.89,145.86,8.13208808]
[1750307847242,34.13208808,145.91,145.87,6.8554192]
[1750307847546,4.75851802,145.9,145.87,6.8554192]
[1750307847726,34.13208808,145.91,145.87,6.8554192]
[1750307847927,4.75851627,145.9,145.87,23.99396722]
[1750307848150,26.0,145.91,145.87,32.1260553]
[1750307848331,4.75859001,145.9,145.87,32.1260553]
[1750307848534,34.13208808,145.91,145.87,32.1260553]
[1750307848833,4.75041109,145.9,145.87,32.1260553]
[1750307849030,39.2263821,145.91,145.87,32.1260553]
[1750307849346,4.75064529,145.9,145.87,32.1260553]
[1750307849546,34.13208808,145.91,145.87,32.1260553]
[1750307849750,4.75067988,145.9,145.87,32.1260553]
[1750307849949,34.13208808,145.91,145.87,32.1260553]
[1750307850133,4.75064732,145.9,145.87,32.1260553]
[1750307850335,39.2263821,145.91,145.87,32.1260553]
[1750307850535,4.75064518,145.9,145.87,32.1260553]
[1750307850737,34.13208808,145.91,145.87,32.1260553]
[1750307851063,4.75118704,145.9,145.87,32.1260553]
[1750307851243,34.13208808,145.91,145.87,32.1260553]
[1750307851553,4.75114889,145.9,145.87,32.1260553]
[1750307851858,34.13208808,145.91,145.87,32.1260553]
[1750307852035,4.75131039,145.9,145.87,32.1260553]
[1750307852237,34.13208808,145.91,145.87,59.8060553]
[1750307852438,4.75136964,145.9,145.87,59.8060553]
[1750307852758,34.13208808,145.91,145.87,59.8060553]
[1750307855764,34.13208808,145.91,145.87,51.67396722]
[1750307855947,8.13208808,145.9,145.87,51.67396722]
[1750307864941,5.21321592,145.9,145.87,51.67396722]
[1750307874752,5.21321592,145.89,145.87,51.67396722]
[1750307875078,9.95502862,145.9,145.87,23.99396722]
[1750307875278,5.21321592,145.9,145.87,51.67396722]
[1750307877160,5.21321592,145.9,145.87,17.13854802]
[1750307879155,5.21321592,145.9,145.87,23.99396722]
[1750307879454,5.21321592,145.9,145.87,6.8554192]
[1750307879650,5.21321592,145.88,145.87,6.8554192]
[1750307881055,5.21321592,145.88,145.86,6.8558892]
[1750307882707,5.09408569,145.9,145.86,6.8558892]
[1750307882881,5.21321592,145.88,145.86,6.8558892]
[1750307887263,5.21321592,145.87,145.86,6.8558892]
[1750307887463,5.21321592,145.87,145.82,23.27686883]
[1750307887464,9.96082515,145.87,145.82,35.79311769]
[1750307887684,5.21321592,145.83,145.81,6.85824017]
[1750307887870,5.21321592,145.82,145.81,6.85824017]
[1750307891295,31.21321592,145.82,145.8,7.70413278]
[1750307891493,5.21321592,145.81,145.8,7.70413278]
[1750307902201,26.0,145.82,145.8,7.70413278]
[1750307902401,5.21321592,145.81,145.8,7.70413278]
[1750307913188,5.21321592,145.81,145.8,0.845577]
[1750307913393,26.0660796,145.81,145.8,0.845577]
[1750307921688,30.78483024,145.81,145.8,0.845577]
[1750307922307,30.78803204,145.81,145.8,0.845577]
[1750307925215,30.72195244,145.81,145.8,0.845577]
[1750307925390,31.21321592,145.81,145.8,0.845577]
[1750307927209,35.94274366,145.81,145.8,0.845577]
[1750307928208,35.94243785,145.81,145.8,0.845577]
[1750307929191,56.79530153,145.81,145.8,0.845577]
[1750307931018,56.80171913,145.81,145.8,0.845577]
[1750307931327,41.02764321,145.81,145.8,0.845577]
[1750307931617,35.94885545,145.81,145.8,0.845577]
[1750307933398,41.02764321,145.81,145.8,0.845577]
[1750307933599,35.94885545,145.81,145.8,0.845577]
[1750307933897,41.03086441,145.81,145.8,0.845577]
[1750307934095,35.95207665,145.81,145.8,0.845577]
[1750307934294,41.03086441,145.81,145.8,0.845577]
[1750307934602,35.95207665,145.81,145.8,0.845577]
[1750307934915,41.03086441,145.81,145.8,0.845577]
[1750307935103,35.95207665,145.81,145.8,0.845577]
[1750307935303,41.03086441,145.81,145.8,0.845577]
[1750307935499,35.95207665,145.81,145.8,0.845577]
[1750307935717,41.03086441,145.81,145.8,0.845577]
[1750307936017,35.95207665,145.81,145.8,0.845577]
[1750307936312,41.03086441,145.81,145.8,7.70428756]
[1750307936519,35.95207665,145.81,145.8,7.70428756]
[1750307937015,35.95207665,145.81,145.8,0.845577]
[1750307937216,35.95207665,145.81,145.8,7.70428756]
[1750307938199,4.73886073,145.81,145.8,7.70428756]
[1750307938398,5.07878776,145.83,145.8,43.50071282]
[1750307938599,9.81806074,145.86,145.81,5.21321592]
[1750307938806,4.73927298,145.85,145.83,6.85729959]
[1750307939019,10.29200368,145.86,145.83,6.85729959]
[1750307939199,4.73938339,145.85,145.83,6.85729959]
[1750307939518,5.21321592,145.86,145.83,6.85729959]
[1750307939814,4.73946438,145.85,145.83,6.85729959]
[1750307940015,5.21321592,145.84,145.81,6.85824017]
[1750307940220,5.21321592,145.82,145.81,6.85824017]
[1750307940715,4.73642608,145.85,145.81,6.85824017]
[1750307940904,9.949642,145.84,145.81,24.0038406]
[1750307941213,5.21321592,145.82,145.81,6.85824017]
[1750307943329,30.80180599,145.82,145.8,0.845577]
[1750307943500,30.80180599,145.81,145.8,0.845577]
[1750307943819,56.80180599,145.81,145.8,0.845577]
[1750307944296,61.88536096,145.81,145.8,0.845577]
[1750307944916,52.1388703,145.81,145.8,0.845577]
[1750307945115,52.13260754,145.81,145.8,0.845577]
[1750307947030,26.13260754,145.81,145.8,0.845577]
[1750307948031,26.14591986,145.81,145.8,0.845577]
[1750307949918,21.06236489,145.81,145.8,0.845577]
[1750307950227,26.14591986,145.81,145.8,0.845577]
[1750307950427,21.06236489,145.81,145.8,0.845577]
[1750307950722,26.14591986,145.81,145.8,0.845577]
[1750307950920,12.91083065,145.81,145.8,7.70428756]
[1750307951311,17.99438562,145.81,145.8,0.845577]
[1750307951732,26.15418009,145.81,145.8,0.845577]
[1750307953235,52.15418009,145.81,145.8,0.845577]
[1750307953739,52.15451141,145.81,145.8,0.845577]
[1750307956532,47.40314391,145.81,145.8,0.845577]
[1750307956739,52.15461226,145.81,145.8,0.845577]
[1750307961950,35.83502332,145.81,145.8,0.845577]
[1750307962125,38.91126282,145.81,145.8,0.845577]
[1750307962647,43.99481779,145.81,145.8,0.845577]
[1750307962849,38.91126282,145.81,145.8,0.845577]
[1750307963053,47.07105729,145.81,145.8,0.845577]
[1750307963230,52.15461226,145.81,145.8,0.845577]
[1750307965255,47.40314391,145.81,145.8,0.845577]
[1750307965451,52.15024731,145.81,145.8,0.845577]
[1750307966858,61.94153077,145.81,145.8,0.845577]
[1750307968038,41.05283285,145.81,145.8,0.845577]
[1750307968238,35.97045675,145.81,145.8,0.845577]
[1750307968648,41.05401172,145.81,145.8,0.845577]
[1750307968853,35.97045675,145.81,145.8,0.845577]
[1750307969255,41.05401172,145.81,145.8,0.845577]
[1750307969456,35.97045675,145.81,145.8,0.845577]
[1750307969947,41.05401172,145.81,145.8,0.845577]
[1750307970150,35.97045675,145.81,145.8,0.845577]
[1750307970554,41.05401172,145.81,145.8,0.845577]
[1750307970755,35.97045675,145.81,145.8,0.845577]
[1750307970959,31.22217448,145.81,145.8,0.845577]
[1750307971164,41.06008275,145.81,145.8,0.845577]
[1750307971461,35.97263133,145.81,145.8,0.845577]
[1750307971849,41.06008275,145.81,145.8,0.845577]
[1750307972050,35.97263133,145.81,145.8,0.845577]
[1750307972451,41.06008275,145.81,145.8,0.845577]
[1750307972665,35.97263133,145.81,145.8,0.845577]
[1750307973166,41.06008275,145.81,145.8,0.845577]
[1750307973360,35.97263133,145.81,145.8,0.845577]
[1750307973870,41.06008275,145.81,145.8,0.845577]
[1750307974055,35.97263133,145.81,145.8,0.845577]
[1750307974254,56.86132925,145.81,145.8,0.845577]
[1750307974456,61.94878067,145.81,145.8,0.845577]
[1750307976870,61.95036273,145.81,145.8,0.845577]
[1750307978390,41.06166481,145.81,145.8,0.845577]
[1750307979788,41.06264851,145.81,145.8,0.845577]
[1750307980201,30.75302261,145.81,145.8,7.70428756]
[1750307980487,35.97519709,145.81,145.8,7.70428756]
[1750307981364,41.06264851,145.81,145.8,7.70428756]
[1750307981581,35.97519709,145.81,145.8,7.70428756]
[1750307981876,35.97492296,145.81,145.8,7.70428756]
[1750307982259,41.06237438,145.81,145.8,7.70428756]
[1750307982457,35.97492296,145.81,145.8,7.70428756]
[1750307983070,41.06237438,145.81,145.8,7.70428756]
[1750307983271,31.22217448,145.81,145.8,7.70428756]
[1750307983652,36.3096259,145.81,145.8,7.70428756]
[1750307983852,31.22217448,145.81,145.8,7.70428756]
[1750307984290,41.06356992,145.81,145.8,7.70428756]
[1750307984448,31.22217448,145.81,145.8,7.70428756]
[1750307984853,36.3096259,145.81,145.8,7.70428756]
[1750307985086,31.22217448,145.81,145.8,7.70428756]
[1750307985348,35.98190472,145.81,145.8,7.70428756]
[1750307985571,41.06731318,145.81,145.8,7.70428756]
[1750307985779,35.97986176,145.81,145.8,7.70428756]
[1750307985956,41.06731318,145.81,145.8,7.70428756]
[1750307986374,36.3096259,145.81,145.8,7.70428756]
[1750307986589,41.06755144,145.81,145.8,7.70428756]
[1750307987303,35.84537696,145.81,145.8,7.70428756]
[1750307987590,41.06755144,145.81,145.8,7.70428756]
[1750307988991,41.06755144,145.81,145.8,0.845577]
[1750307989305,61.96591089,145.81,145.8,0.845577]
[1750307996797,61.96759231,145.81,145.8,0.845577]
[1750307997873,57.19832382,145.81,145.8,0.845577]
[1750307998076,61.9673086,145.81,145.8,0.845577]
[1750307999907,35.9673086,145.81,145.8,0.845577]
[1750308002571,35.9691466,145.81,145.8,0.845577]
[1750308003383,35.96831431,145.81,145.8,0.845577]
[1750308004399,30.88086289,145.81,145.8,0.845577]
[1750308005203,35.98285197,145.81,145.8,0.845577]
[1750308005595,30.88086289,145.81,145.8,0.845577]
[1750308006285,30.87977302,145.81,145.8,0.845577]
[1750308006688,35.98144411,145.81,145.8,0.845577]
[1750308007611,30.87977302,145.81,145.8,0.845577]
[1750308008684,35.97896001,145.81,145.8,0.845577]
[1750308009182,35.99016196,145.81,145.8,0.845577]
[1750308009413,30.89097497,145.81,145.8,0.845577]
[1750308009617,35.98991002,145.81,145.8,0.845577]
[1750308011307,15.1012121,145.81,145.8,0.845577]
[1750308011525,15.1012121,145.81,145.8,7.70428756]
[1750308012589,35.98991002,145.81,145.8,0.845577]
[1750308012793,9.87903762,145.81,145.8,0.845577]
[1750308013115,15.1012121,145.81,145.8,0.845577]
[1750308013284,35.98991002,145.81,145.8,0.845577]
[1750308014829,35.98991002,145.81,145.8,7.70428756]
[1750308014984,15.1012121,145.81,145.8,7.70428756]
[1750308015941,10.32110953,145.83,145.8,43.50071282]
[1750308016077,4.78166488,145.82,145.8,43.50071282]
[1750308016285,5.22217448,145.83,145.8,43.50071282]
[1750308016497,4.78149124,145.82,145.8,43.50071282]
[1750308016678,5.22217448,145.83,145.8,43.50071282]
[1750308016881,4.78129306,145.82,145.8,43.50071282]
[1750308017099,5.22217448,145.83,145.8,43.50071282]
[1750308017404,4.78091087,145.82,145.8,43.50071282]
[1750308017591,5.22217448,145.83,145.8,43.50071282]
[1750308017905,4.77634303,145.82,145.8,43.50071282]
[1750308018105,5.0964396,145.84,145.8,43.50071282]
[1750308018308,9.9982407,145.83,145.8,43.50071282]
[1750308018490,10.31861408,145.84,145.8,48.7228873]
[1750308018690,4.77623294,145.83,145.8,48.7228873]
[1750308019006,10.31861408,145.84,145.8,48.7228873]
[1750308019306,4.77637294,145.83,145.8,48.7228873]
[1750308019486,10.31861408,145.84,145.8,43.50071282]
[1750308019808,4.77360053,145.83,145.8,43.50071282]
[1750308019988,5.22217448,145.84,145.81,18.64964886]
[1750308020905,5.22217448,145.84,145.82,6.85776985]
[1750308023282,31.22217448,145.85,145.82,24.00219448]
[1750308023488,5.22217448,145.86,145.83,18.64964886]
[1750308023689,9.9901345,145.86,145.83,18.64964886]
[1750308024310,5.22217448,145.86,145.83,18.64964886]
[1750308024610,5.22217448,145.86,145.84,6.8568294]
[1750308030488,5.08887551,145.91,145.85,18.64964886]
[1750308030707,5.22217448,145.89,145.85,23.87182334]
[1750308031004,5.22217448,145.87,145.84,23.9989029]
[1750308032591,26.0,145.9,145.84,23.9989029]
[1750308032592,5.22217448,145.86,145.84,23.9989029]
[1750308036323,5.22217448,145.87,145.84,23.9989029]
[1750308038025,5.22217448,145.88,145.84,29.22107738]
[1750308038207,5.22217448,145.89,145.85,23.87182334]
[1750308039002,5.22217448,145.89,145.86,23.99561222]
[1750308039203,5.22217448,145.88,145.86,23.99561222]
[1750308039605,26.0,145.9,145.86,23.99561222]
[1750308039803,5.22217448,145.88,145.86,23.99561222]
[1750308042024,26.0,145.9,145.86,23.99561222]
[1750308042329,5.22217448,145.88,145.86,23.99561222]
[1750308044416,5.22217448,145.89,145.86,23.99561222]
[1750308046916,5.22217448,145.9,145.86,23.99561222]
[1750308048537,6.41540612,145.93,145.86,23.99561222]
[1750308048832,5.22217448,145.89,145.86,23.99561222]
[1750308050536,6.41540612,145.93,145.86,23.99561222]
[1750308050742,5.22217448,145.89,145.86,23.99561222]
[1750308063026,9.99474733,145.9,145.86,23.99561222]
[1750308063227,5.22217448,145.9,145.86,23.99561222]
[1750308067544,4.77913297,145.89,145.86,23.99561222]
[1750308067745,5.22217448,145.9,145.86,23.99561222]
[1750308067950,4.7791339,145.89,145.86,23.99561222]
[1750308068141,5.22217448,145.9,145.86,23.99561222]
[1750308068353,4.77913175,145.89,145.86,23.99561222]
[1750308068658,5.22217448,145.9,145.86,23.99561222]
[1750308068852,4.77921071,145.89,145.86,23.99561222]
[1750308069051,5.22217448,145.9,145.86,23.99561222]
[1750308069254,4.77921071,145.89,145.86,23.99561222]
[1750308069558,5.22217448,145.9,145.86,23.99561222]
[1750308069744,4.77303497,145.89,145.86,23.99561222]
[1750308069939,5.22217448,145.9,145.86,23.99561222]
[1750308070153,4.77375776,145.89,145.86,23.99561222]
[1750308070361,5.22217448,145.9,145.86,23.99561222]
[1750308070658,4.77405518,145.89,145.86,23.99561222]
[1750308070859,5.22217448,145.9,145.86,23.99561222]
[1750308071046,4.77427138,145.89,145.86,23.99561222]
[1750308071245,5.22217448,145.89,145.86,23.99561222]
[1750308072934,4.77475319,145.88,145.86,23.99561222]
[1750308073140,5.22217448,145.88,145.86,23.99561222]
[1750308074151,31.22217448,145.87,145.86,6.8558892]
[1750308074360,35.99779958,145.87,145.86,6.8558892]
[1750308074659,41.09724533,145.87,145.84,6.8568294]
[1750308074967,31.22217448,145.85,145.84,6.8568294]
[1750308075174,35.99469295,145.85,145.84,6.8568294]
[1750308075478,35.99469295,145.85,145.81,35.79432821]
[1750308075479,35.99469295,145.85,145.82,6.85776985]
[1750308075650,5.22217448,145.84,145.82,6.85776985]
[1750308075839,31.22217448,145.85,145.82,6.85776985]
[1750308076471,31.22217448,145.85,145.82,24.00219448]
[1750308078039,5.22217448,145.84,145.82,24.00219448]
[1750308081556,31.22217448,145.85,145.82,24.00219448]
[1750308082272,26.0,145.84,145.82,24.00219448]
[1750308082583,31.22217448,145.84,145.82,24.00219448]
[1750308083555,26.0,145.84,145.82,24.00219448]
[1750308083768,31.22217448,145.84,145.82,17.14442463]
[1750308084168,31.22217448,145.84,145.81,6.85824017]
[1750308086174,31.22217448,145.84,145.81,24.0038406]
[1750308104173,5.22217448,145.83,145.81,24.0038406]
[1750308104494,5.22217448,145.82,145.8,0.845577]
[1750308104667,30.86979107,145.81,145.8,0.845577]
[1750308105689,27.5473,145.79,145.78,48.01849251]
[1750308105863,37.52839315,145.79,145.78,48.01849251]
[1750308106058,37.52647648,145.79,145.78,48.01849251]
[1750308106883,32.76947448,145.79,145.78,48.01849251]
[1750308107189,37.51996467,145.79,145.78,48.01849251]
[1750308108159,26.0,145.79,145.78,54.87814403]
[1750308108377,31.22217448,145.79,145.78,54.87814403]
[1750308108685,26.0,145.79,145.78,54.87814403]
[1750308109091,5.22217448,145.82,145.78,54.87814403]
[1750308109299,4.76741793,145.85,145.79,5.22217448]
[1750308109481,5.22217448,145.84,145.8,23.87182334]
[1750308109668,5.22217448,145.84,145.81,6.85824017]
[1750308109669,26.0,145.82,145.81,6.85824017]
[1750308110867,8.153337,145.83,145.81,6.85824017]
[1750308111076,34.153337,145.83,145.81,6.85824017]
[1750308111683,34.153337,145.83,145.8,24.00466447]
[1750308112271,8.153337,145.82,145.8,24.00466447]
[1750308112892,34.153337,145.83,145.8,24.00466447]
[1750308114569,8.153337,145.82,145.8,24.00466447]
[1750308115782,34.153337,145.83,145.8,24.00466447]
[1750308117698,34.153337,145.83,145.8,17.14595391]
[1750308118178,8.153337,145.82,145.79,6.85918101]
[1750308118378,8.153337,145.81,145.79,6.85918101]
[1750308119079,8.153337,145.82,145.79,6.85918101]
[1750308121299,34.153337,145.83,145.79,15.01251801]
[1750308124000,34.153337,145.83,145.79,32.16047054]
[1750308124600,5.07218786,145.86,145.81,26.80298586]
[1750308124897,8.153337,145.87,145.83,15.01063659]
[1750308125198,4.76343896,145.88,145.85,8.153337]
[1750308125397,26.0,145.86,145.85,8.153337]
[1750308125771,5.07218786,145.93,145.86,18.64964886]
[1750308125971,4.76329313,145.92,145.86,26.80298586]
[1750308126197,12.91663013,145.91,145.87,8.153337]
[1750308126374,26.0,145.89,145.88,8.153337]
[1750308126576,26.0,145.89,145.87,8.153337]
[1750308126776,5.07000038,145.95,145.9,18.64964886]
[1750308126973,4.76306208,145.96,145.92,8.153337]
[1750308127197,4.76306208,145.96,145.93,8.153337]
[1750308127380,26.0,145.94,145.93,8.153337]
[1750308127711,8.153337,145.97,145.93,8.153337]
[1750308127891,34.153337,145.97,145.93,8.153337]
[1750308128399,26.0,145.95,145.94,6.85213101]
[1750308128778,26.0,145.98,145.94,6.85213101]
[1750308128993,34.153337,145.98,145.94,6.85213101]
[1750308129188,26.0,145.98,145.94,8.153337]
[1750308129601,13.953337,146.02,145.93,17.1313853]
[1750308129602,8.153337,146.0,145.96,8.153337]
[1750308129788,8.153337,146.01,145.96,8.153337]
[1750308129979,26.0,145.97,145.96,8.153337]
[1750308130186,8.153337,146.03,145.97,18.64964886]
[1750308130482,26.0,146.0,145.98,8.153337]
[1750308131174,26.0,146.0,145.99,6.84978423]
[1750308131379,26.0,146.0,145.99,15.00312123]
[1750308132074,7.4519,146.07,145.99,32.1275818]
[1750308132377,26.0,146.04,146.0,8.153337]
[1750308132578,34.153337,146.04,146.0,8.153337]
[1750308132985,26.0,146.04,146.0,8.153337]
[1750308133185,34.153337,146.04,146.0,8.153337]